Cogmind - Beta 17 @@@ ROGUE MODE // 2026.07.11 @ 16:05:48 Player: welikiq Result: Self-destructed Performance ------------- Evolutions (2) 1000 Regions Visited (5) 1000 Robots Destroyed (29) 145 Value Destroyed (655) 655 Prototype IDs (0) 0 Alien Tech Used (0) 0 Bonus (60) 60 TOTAL SCORE: 2860 Bonus ------- Follower Combat Kills 60 Cogmind --------- Core Integrity 550/550 Matter 300/300 Energy 250/250 System Corruption 0% Temperature Cool (0) Movement Treading (160) Location -8/Materials Parts ------- > --- POWER (1) -------- Ion Engine > --- PROPULSION (3) --- Light Treads Light Treads > --- UTILITY (3) ------ Medium Storage Unit Signal Interpreter > --- WEAPON (4) ------- Heavy Battle Rifle Improved Light Cannon > --- INVENTORY (10) --- Ion Engine Light Treads Large Matter Pod (150) Compact Matter Pod (150) Experimental Sensor Array Target Analyzer Hacking Suite Light Assault Rifle Light Assault Rifle Katana Peak State ------------ > --- POWER ------------ Ion Engine > --- PROPULSION ------- Light Treads Light Treads > --- UTILITY ---------- Medium Storage Unit Signal Interpreter > --- WEAPON ----------- Heavy Battle Rifle Improved Light Cannon > --- INVENTORY -------- Ion Engine Light Treads Large Matter Pod Compact Matter Pod Experimental Sensor Array Target Analyzer Hacking Suite Light Assault Rifle Light Assault Rifle Katana [Rating: 13] Favorites ----------- Power Ion Engine Engine Ion Engine Propulsion Light Treads Treads Light Treads Utility Medium Storage Unit Storage Medium Storage Unit Processor Signal Interpreter Weapon Light Assault Rifle Ballistic Gun Light Assault Rifle Ballistic Cannon Improved Light Cannon Impact Weapon Hammer Build | -11 -10 -10 -10 -9 -8 ------- Run | Yrd Mat Min Exi Min Mat Slots Evolved 4 | . . . . . 4 Power . | . . . . . . Propulsion 1 | . . . . . 1 Utility 1 | . . . . . 1 Weapon 2 | . . . . . 2 Parts Attached 20 | 6 8 4 . 2 . Power 4 | 1 3 . . . . Engine 4 | 1 3 . . . . Core . | . . . . . . Reactor . | . . . . . . Propulsion 4 | 2 1 1 . . . Treads 4 | 2 1 1 . . . Leg . | . . . . . . Wheel . | . . . . . . Hover . | . . . . . . Flight . | . . . . . . Utility 4 | 1 1 2 . . . Device . | . . . . . . Storage 3 | 1 1 1 . . . Processor 1 | . . 1 . . . Hackware . | . . . . . . Protection . | . . . . . . Artifact . | . . . . . . Weapon 8 | 2 3 1 . 2 . Energy Gun . | . . . . . . Energy Cannon . | . . . . . . Ballistic Gun 6 | 2 2 1 . 1 . Ballistic Cannon 1 | . . . . 1 . Launcher . | . . . . . . Special Weapon . | . . . . . . Impact Weapon 1 | . 1 . . . . Slashing Weapon . | . . . . . . Piercing Weapon . | . . . . . . Special Melee Weapon . | . . . . . . Unidentified Prototypes . | . . . . . . Parts Lost 4 | . 3 1 . . . Power 1 | . 1 . . . . Propulsion 1 | . . 1 . . . Utility . | . . . . . . Weapon 2 | . 2 . . . . Highest Loss Streak 1 | . 1 1 . . . To Critical Strikes . | . . . . . . Average Backups 8 | 1 6 8 9 9 10 Power . | . . 1 1 1 1 Propulsion . | . . . 1 1 1 Utility 3 | . 1 3 4 4 5 Weapon 3 | . 3 3 3 3 3 Tool/Special . | . . . . . . Unused Backups 9 | . 1 2 . . 6 Power . | . . . . . . Propulsion . | . . . . . . Utility 4 | . . . . . 4 Weapon 5 | . 1 2 . . 2 Tool/Special . | . . . . . . Average Slot Usage (%) 95 | . 84 99 100 100 63 Engine 13 | . 13 14 14 14 9 Treads 27 | . 28 27 28 28 18 Storage 14 | . 14 17 14 14 9 Processor 9 | . . 10 14 14 9 Ballistic Gun 26 | . 27 28 28 24 9 Ballistic Cannon 1 | . . . . 3 9 Peak Build Rating 13 | 6 8 10 8 13 13 Average Rating 8 | 4 6 8 8 10 13 On Entrance 7 | . 6 7 8 8 13 Avg Prop Armor Cover (%) . | . . . . . . Naked Turns . | . . . . . . Heaviest Build 23 | 11 18 18 17 23 23 Greatest Support 40 | 40 40 40 40 40 40 Greatest Overweight (x) . | . . . . . . Average Overweight (x) . | . . . . . . Largest Inventory Capacity 10 | 8 10 10 10 10 10 Average Capacity 9 | 6 8 10 10 10 10 Most Carried 10 | 2 8 10 9 10 10 Average Carried 8 | 1 6 8 9 9 10 Final Capacity 10 | 8 10 10 10 10 10 Final Carried 10 | 2 8 9 9 10 10 Class Distribution -------------------- 53% | Mutant 46% | Commander-Mutant Dominant Class ---------------- Mutant | -10/Materials Mutant | -10/Mines Commander-Mutant | -10/Exiles Commander-Mutant | -9/Mines Commander-Mutant | -8/Materials Resources | -11 -10 -10 -10 -9 -8 ----------- Run | Yrd Mat Min Exi Min Mat Matter Collected 933 | 221 615 82 . 15 . Remotely . | . . . . . . Salvage Created 1029 | . 847 182 . . . Parts 60 | . 40 18 . 2 . Haulers Intercepted 2 | . 2 . . . . Recyclers Shooed . | . . . . . . Parts Field Recycled . | . . . . . . Retrieved Matter . | . . . . . . Parts Self-Destructed . | . . . . . . Prevented . | . . . . . . Parts Restored . | . . . . . . Kills | -11 -10 -10 -10 -9 -8 ------- Run | Yrd Mat Min Exi Min Mat Combat Hostiles Destroyed 21 | . 14 7 . . . Guns 21 | . 14 7 . . . Classes Destroyed 7 | . 6 . . 1 . Tunneler 1 | . . . . 1 . Hauler 2 | . 2 . . . . Recycler 2 | . 2 . . . . Operator 2 | . 2 . . . . Watcher 1 | . 1 . . . . Swarmer 8 | . 3 5 . . . Grunt 13 | . 11 2 . . . Best Kill Streak 6 | . 6 5 . 1 . Combat Bots Only 5 | . 4 5 . . . Max Kills in Single Turn 1 | . 1 1 . 1 . Gunslinging . | . . . . . . Exploded . | . . . . . . Melee . | . . . . . . Uniques/NPCs Destroyed . | . . . . . . Combat | -11 -10 -10 -10 -9 -8 -------- Run | Yrd Mat Min Exi Min Mat Hostile Shots Fired 99 | . 69 29 . 1 . Missed 29 | . 20 8 . 1 . Hits 70 | . 49 21 . . . Projectile 70 | . 49 21 . . . Critical Strikes 3 | . 3 . . . . Damage Taken 888 | . 640 248 . . . Core 127 | . 91 36 . . . Absorbed by Shields . | . . . . . . Core Remaining (%) 74 | 100 . . . 49 . Volleys Fired 80 | . 64 16 . . . Largest 2 | . 2 2 . . . Hottest 40 | . 40 40 . . . Shots Fired 159 | . 127 32 . . . Gun 159 | . 127 32 . . . Cannon . | . . . . . . Launcher . | . . . . . . Special . | . . . . . . Kinetic 159 | . 127 32 . . . Thermal . | . . . . . . Explosive . | . . . . . . Electromagnetic . | . . . . . . Robot Hit Streak 15 | . 15 10 . . . Robot Miss Streak 4 | . 4 4 . . . Penetration Max . | . . . . . . Secondary Targets 4 | . 2 2 . . . Max Gunslinging Chain 1 | . 1 1 . . . Shots Hit Robots 108 | . 86 22 . . . Core Hits 50 | . 37 13 . . . Critical Kills . | . . . . . . Critical Parts Destroyed . | . . . . . . Critical Strikes . | . . . . . . Melee Attacks 2 | . 2 . . . . Impact 2 | . 2 . . . . Slashing . | . . . . . . Piercing . | . . . . . . Sneak Attacks . | . . . . . . Combat Hostiles . | . . . . . . Follow-up Attacks . | . . . . . . Damage Inflicted 1236 | . 1044 179 . 13 . Guns 1213 | . 1034 179 . . . Cannons . | . . . . . . Explosions . | . . . . . . Melee . | . . . . . . Ramming 23 | . 10 . . 13 . Kinetic 1213 | . 1034 179 . . . Thermal . | . . . . . . Explosive . | . . . . . . Electromagnetic . | . . . . . . Impact . | . . . . . . Slashing . | . . . . . . Piercing . | . . . . . . Highest Corruption . | . . . . . . Average Corruption . | . . . . . . Corruption Purged . | . . . . . . Corruption Blocked . | . . . . . . Overload Shots . | . . . . . . Overflow Damage . | . . . . . . Projectiles . | . . . . . . Explosions . | . . . . . . Melee . | . . . . . . Knockbacks 2 | . 1 . . 1 . Impact 2 | . 1 . . 1 . Kinetic . | . . . . . . Secondary . | . . . . . . Self-Inflicted Damage . | . . . . . . Shots . | . . . . . . Rammed 6 | . 4 . . 2 . Targets Rammed 7 | . 4 . . 3 . Kicked . | . . . . . . Crushed 1 | . . . . 1 . Highest Temperature 20 | . 20 18 . . . Average Temperature 6 | . 6 9 . . . Received Heat Transfer 450 | . 396 54 . . . Siege Activations . | . . . . . . Martial Activations . | . . . . . . Shielding Activations . | . . . . . . Robots Disrupted . | . . . . . . Combat Hostiles . | . . . . . . Robots Corrupted . | . . . . . . Combat Hostiles . | . . . . . . Parts Fried . | . . . . . . Impact Corruptions . | . . . . . . Robots Melted . | . . . . . . Combat Hostiles . | . . . . . . Parts Melted . | . . . . . . Heat Transferred . | . . . . . . Parts Sabotaged . | . . . . . . Parts Stolen . | . . . . . . Parts Stripped . | . . . . . . Power Chain Reactions . | . . . . . . Alert | -11 -10 -10 -10 -9 -8 ------- Run | Yrd Mat Min Exi Min Mat Maximum Alert Level . | . . . . . . Low Security (%) 100 | 100 100 100 . 100 100 Level 1 . | . . . . . . Level 2 . | . . . . . . Level 3 . | . . . . . . Level 4 . | . . . . . . Level 5 . | . . . . . . High Security . | . . . . . . Max Security . | . . . . . . Peak Influence 117 | . 117 90 . 62 . Initial 20 | . . 20 . . . Average 20 | . 41 18 . 3 . Influence Increases 683 | . 419 185 . 79 . Destroy 0b10 Robot/C 460 | . 280 140 . 40 . Destroy 0b10 Robot/NC 40 | . 35 . . 5 . Destroy Leader 116 | . 76 30 . 10 . Allied During Kill 24 | . . . . 24 . Successful Hack 12 | . 12 . . . . Disable Machine 15 | . 15 . . . . Destroy Structure 1 | . 1 . . . . Lose Combat Pursuer 15 | . . 15 . . . Influence Decreases 683 | . 366 189 49 76 3 Entered New Map 85 | . . 33 49 . 3 Time Decay 558 | . 336 146 . 76 . Lost Part 40 | . 30 10 . . . Squads Dispatched 3 | . 3 . . . . Investigation 2 | . 2 . . . . Extermination . | . . . . . . Reinforcement 1 | . 1 . . . . Assault . | . . . . . . Garrison . | . . . . . . Intercept . | . . . . . . Searches Triggered . | . . . . . . Construction Impeded . | . . . . . . Haulers Reinforced . | . . . . . . Active Scanning Responses . | . . . . . . Cargo Convoy Interrupts . | . . . . . . Stealth | -11 -10 -10 -10 -9 -8 --------- Run | Yrd Mat Min Exi Min Mat Distress Signals 1 | . 1 . . . . Communications Jammed . | . . . . . . Distress Signals . | . . . . . . Times Spotted 34 | . 24 8 . 2 . Peak Tracking Total 5 | . 5 4 . 2 . Tactical Retreats 1 | . . 1 . . . Traps | -11 -10 -10 -10 -9 -8 ------- Run | Yrd Mat Min Exi Min Mat Traps Triggered 1 | . 1 . . . . Indirectly . | . . . . . . Trap Hack Attempts . | . . . . . . Triggered . | . . . . . . Disarmed . | . . . . . . Reprogrammed . | . . . . . . Reused . | . . . . . . Traps Extracted . | . . . . . . Installed . | . . . . . . Triggered . | . . . . . . Machines | -11 -10 -10 -10 -9 -8 ---------- Run | Yrd Mat Min Exi Min Mat Machines Disabled 1 | . 1 . . . . Max in Single Turn 1 | . 1 . . . . Machines Repaired . | . . . . . . Machines Dismantled . | . . . . . . Machines Sabotaged . | . . . . . . Overloaded Fab Kills . | . . . . . . Hacking | -11 -10 -10 -10 -9 -8 --------- Run | Yrd Mat Min Exi Min Mat Machines Accessed 7 | . 6 1 . . . Terminals 6 | . 6 . . . . Fabricators . | . . . . . . Repair Stations . | . . . . . . Recycling Units . | . . . . . . Scanalyzers . | . . . . . . Garrison Access . | . . . . . . Total Hacks 20 | . 19 1 . . . Successful 5 | . 4 1 . . . Failed 15 | . 15 . . . . Catastrophic 2 | . 2 . . . . Database Lockouts . | . . . . . . Manual 19 | . 19 . . . . Terminals 19 | . 19 . . . . Fabricators . | . . . . . . Repair Stations . | . . . . . . Recycling Units . | . . . . . . Scanalyzers . | . . . . . . Garrison Access . | . . . . . . Terminal Hacks 5 | . 4 1 . . . Robot Analysis 4 | . 4 . . . . Open Door 1 | . . 1 . . . Fabricator Hacks . | . . . . . . Repair Station Hacks . | . . . . . . Recycling Unit Hacks . | . . . . . . Scanalyzer . | . . . . . . Garrison Access Hacks . | . . . . . . Unauthorized Hacks . | . . . . . . Terminals . | . . . . . . Fabricators . | . . . . . . Repair Stations . | . . . . . . Recycling Units . | . . . . . . Scanalyzers . | . . . . . . Garrison Access . | . . . . . . Data Cores Recovered 1 | . 1 . . . . Used . | . . . . . . Hacking Detections 6 | . 6 . . . . Full Trace Events 1 | . 1 . . . . Feedback Events . | . . . . . . Feedback Blocked . | . . . . . . Robot Schematics Acquired . | . . . . . . Robots Built . | . . . . . . Authchips . | . . . . . . Time . | . . . . . . Total Robot Build Rating . | . . . . . . Part Schematics Acquired . | . . . . . . Parts Built . | . . . . . . Authchips . | . . . . . . Time . | . . . . . . Total Part Build Rating . | . . . . . . Part Studies Acquired . | . . . . . . Parts Repaired . | . . . . . . Time . | . . . . . . Parts Recycled . | . . . . . . Recycled Matter . | . . . . . . Retrieved Matter . | . . . . . . Retrieved Components . | . . . . . . Parts Scanalyzed . | . . . . . . Part Schematics Acquired . | . . . . . . Parts Damaged . | . . . . . . Bothacking | -11 -10 -10 -10 -9 -8 ------------ Run | Yrd Mat Min Exi Min Mat Used RIF Installer . | . . . . . . Robots Hacked . | . . . . . . Non-combat . | . . . . . . Combat . | . . . . . . Robot Hacks Applied . | . . . . . . Relay Couplers Released . | . . . . . . Fabnet Peak Effective % . | . . . . . . Robots Rewired 6 | . . . 6 . . Allies Hacked . | . . . . . . Hacks Repelled . | . . . . . . Allies | -11 -10 -10 -10 -9 -8 -------- Run | Yrd Mat Min Exi Min Mat Total Allies 10 | . . . 6 4 . Largest Group 9 | . . . 6 9 . Highest-Rated Group 124 | . . . 74 124 . Highest-Rated Ally 31 | . . . 21 31 . Total Orders . | . . . . . . Ally Attacks 5 | . . . . 5 . Total Damage 58 | . . . . 58 . Kills 2 | . . . . 2 . Allies Corrupted . | . . . . . . Allies Melted . | . . . . . . Intel | -11 -10 -10 -10 -9 -8 ------- Run | Yrd Mat Min Exi Min Mat Active Infowar (turns) . | . . . . . . Robot Analysis Total 4 | . 4 . . . . Derelict Logs Recovered 3 | . . 1 . 2 . Drone Launches . | . . . . . . Drone Recoveries . | . . . . . . Exploration | -11 -10 -10 -10 -9 -8 ------------- Run | Yrd Mat Min Exi Min Mat Turns Passed 4786 | 83 1267 664 1296 1474 2 Spaces Moved 2760 | 48 639 378 785 909 1 Core 4 | 4 . . . . . Treads 2756 | 44 639 378 785 909 1 Legs . | . . . . . . Wheels . | . . . . . . Hover . | . . . . . . Flight . | . . . . . . Fastest Speed 50 | 50 160 160 160 160 160 Average Speed 159 | 150 160 160 160 160 160 Slowest Speed 160 | 160 160 160 160 160 160 Overloaded Moves . | . . . . . . Propulsion Burnouts . | . . . . . . Robots Hopped . | . . . . . . Potential Cave-ins . | . . . . . . Cave-ins Triggered . | . . . . . . Exploration Rate (%) 69 | 4 94 58 90 99 . Regions Visited 5 Branch Regions 3 Pre-discovered Areas . | . . . . . . Known Exits Taken 3 | . . 1 1 1 . Unknown Exits Taken 2 | 1 1 . . . . Scrap Searched 4 | . . . . 4 . Spaces Dug 1 | . 1 . . . . Terrain Destroyed 1 | . 1 . . . . Melee 1 | . 1 . . . . Projectile . | . . . . . . AOE . | . . . . . . Terrain Rammed . | . . . . . . Walls Destroyed . | . . . . . . Machines Disabled . | . . . . . . Actions | -11 -10 -10 -10 -9 -8 --------- Run | Yrd Mat Min Exi Min Mat Total 2974 | 56 755 411 825 926 1 Wait 41 | . 21 7 2 11 . Move 2755 | 47 638 377 784 908 1 Hop . | . . . . . . Pick Up 15 | 3 8 3 . 1 . Fast Attach 7 | 5 1 1 . . . Attach 5 | 1 3 1 . . . Detach . | . . . . . . Swap 15 | . 10 3 . 2 . Drop 8 | . 4 3 . 1 . Fire 80 | . 64 16 . . . Melee 2 | . 2 . . . . Ram . | . . . . . . Kick . | . . . . . . Crush 7 | . 4 . . 3 . Escape Stasis . | . . . . . . Rewire 39 | . . . 39 . . Trap . | . . . . . . Miscellaneous . | . . . . . . Route ------- -11/Scrapyard -10/Materials (discovered 5 exits: *Mat x3 / *Min x2) -10/Mines (discovered 3 exits: *Mat / *Exi / *Sub) -10/Exiles (discovered 2 exits: *Min x2) -9/Mines (discovered 2 exits: *Mat x2) -8/Materials History --------- Turn | Location | Event 6 | -11/Scrapyard | Discovered new exit (range 16) 84 | -11/Scrapyard | Entered Materials 228 | -10/Materials | Discovered new exit (range 14) 285 | -10/Materials | Discovered new exit (range 16) 318 | -10/Materials | Build established: Mutant 893 | -10/Materials | Discovered new exit (range 11) 1040 | -10/Materials | Discovered new exit (range 6) 1154 | -10/Materials | Discovered new exit (range 16) 1351 | -10/Materials | Entered Mines 1555 | -10/Mines | Learned 2 Materials zone layouts 1571 | -10/Mines | Discovered new exit (range 6) 1580 | -10/Mines | Identified exit to Materials 1647 | -10/Mines | Met a Derelict who couldn't figure out how to use a Trap Extractor 1827 | -10/Mines | Discovered new exit (range 8) 1840 | -10/Mines | Identified exit to Subcaves 1974 | -10/Mines | Core integrity fell below 50% 2005 | -10/Mines | Deemed a non-threat by the Exiles lab entrance 2007 | -10/Mines | Discovered new exit (range 5) 2012 | -10/Mines | Identified exit to Exiles 2015 | -10/Mines | Entered Exiles 2015 | -10/Exiles | Found Exiles lab destroyed 2351 | -10/Exiles | Discovered new exit (range 14) 2378 | -10/Exiles | Identified exit to Mines 2620 | -10/Exiles | Discovered exit to Mines (range 15) 2837 | -10/Exiles | Build established: Commander-Mutant 3311 | -10/Exiles | Entered Mines 3311 | -9/Mines | Accompanied by 5 allies 3315 | -9/Mines | Met a Derelict bent on vengeance 3324 | -9/Mines | Assisted by bots powering up and referring to "LRC-V3" 3443 | -9/Mines | Learned Materials emergency access door positions 3569 | -9/Mines | A weapon hastily lodged in a ceiling crevice suddenly fell to the ground 3860 | -9/Mines | Learned Materials terminal intel 3937 | -9/Mines | Discovered new exit (range 6) 3945 | -9/Mines | Identified exit to Materials 3952 | -9/Mines | Received a Rocket Launcher from a helpful Derelict 4085 | -9/Mines | Received a Mining Laser from a helpful Derelict 4246 | -9/Mines | Discovered exit to Materials (range 10) 4429 | -9/Mines | Found a damaged Exp. Sensor Array with a note attached 4433 | -9/Mines | Found Prototype Device 4785 | -9/Mines | Entered Materials 4785 | -8/Materials | Accompanied by 3 allies 4785 | -8/Materials | Evolved 4 slots: Propulsion x1, Utility x1, Weapon x2 4787 | -8/Materials | Self-destructed Last Messages --------------- doesn't do us much good if we can't spot those areas until they're on top of us... With this we can! Deliver it to Megawrench for repairs then we'll never be afraid of an ambush while sneaking around Materials again, ha." 04433_ Dropped Lgt. Assault Rifle. 04433_ Acquired Prototype Device. 04459_ R-06 Scavenger collects Lgt. Assault Rifle. 04565_ Slammed into R-06 Scavenger. 04565_ R-06 Scavenger knocked back. 04757_ Crushed T-07 Excavator. 04757_ T-07 Excavator destroyed. 04783_ K-01 Serf cleans the Plasma Injector. PARAMETERS=PROPULSION+1,UTILITY+1,WEAPON+2 LOCATION=MATERIALS GOAL=ESCAPE Loading 2 Materials zones... Loading Materials emergency access points (x7)... Map ----- +----------------------------------------------------+ | ????????????????????????????????????????? | | ????????????????????????????????????????? | | ????????????????????????????????????????? | | ????????????????????????????????????????? | | ????????????????????????????????????????? | | ????????????????????????????????????????? | | ????????????????????????????????????????? | | ????????????????????????????????????????? | | ????????????????????????????????????????? | | ????????????????????????????????????????? | | ????????????????????????????????????????? | | ????????????????????????????????????????? | | ????????????????????????????????????????? | | ????????????????????????????????????????? | | ????????????????????????????????????????? | | ????????????????????????????????????????? | | ????????????????????????????????????????? | | ????????????????????????????????????????? | | ????????????????????????????????????????? | | ????????????????????????????????????????? | | ????????????????????????????????????????? | | ????????????????????????????????????????? | | ???????????????????#########????????????? | | ???????????????????# g #????????????? | | ???????????????????# g #????????????? | | ???????????????????# g @ #????????????? | | ???????????????????# #####????????????? | | ???????????????????# ??????????????????? | | ???????????????????# ???????????????????? | | ????????????????????????????????????????? | | ????????????????????????????????????????? | | ????????????????????????????????????????? | | ????????????????????????????????????????? | | ????????????????????????????????????????? | | ????????????????????????????????????????? | | ????????????????????????????????????????? | | ????????????????????????????????????????? | | ????????????????????????????????????????? | | ????????????????????????????????????????? | | ???????????????????????????+????????????? | | ????????????????????????????????????????? | | ????????????????????????????????????????? | | ????????????????????????????????????????? | | ????????????????????????????????????????? | | ???+??????+?????????????????????????????? | | ????????????????????????????????????????? | | ????????????????????????????????????????? | | ???+??????+?????????????????????????????? | | ????????????????????????????????????????? | | ????????????????????????????????????????? | +----------------------------------------------------+ Best States ------------- Heat Dissipation 25 Energy Generation 10 Energy Capacity 250 Matter Stores 450 Matter Capacity 450 Sight Range 16 Terrain Scan Density 10 Evasion (%) 40 Recoil Reduction 2 Item Schematics ----------------- None Robot Schematics ------------------ None Fabricated ------------ Nothing Repaired ---------- Nothing Studied --------- None Alien Tech Used ----------------- None Achievements -------------- None Challenges ------------ None Game ------ Seed WeldingSixFilter Manual? 0 Play Time 00:22:50 Cumulative 53.8 hours Start 2026.07.11 @ 15:42:28 End 2026.07.11 @ 16:05:48 Sessions 1 Manual Loads 0 Difficulty Rogue Special Mode None Game No. 74 Rogue 74 Adventurer 0 Explorer 0 Win Type - Total 0 Types 0/0/0/0/0/0/0/0/0/0 Lore% 10 Gallery% 24 Achievement% 19 Wizard Run 0 Options --------- Layout 1 ASCII 0 Keyboard 0 Movement Numpad Keybinds 0 Fullscreen 1 Font 32/SmallcapsGlow Map View 50x35 Zoom Use 2% Tactical HUD 1 Map Filters NONE Filters NONE Steam 1 RUN: c4f79055-b204-48e3-b823-e52eed0172eb